Workbook

Sheet Vandgennemstrømning
A2: , | B2: Dette regneark er et støtteværktøj til "Kvantificering af fosfortab fra N og P vådområder" version 29 september 2020. De anvendte henvisninger til afnsit er til afsnit i denne vejledning.
B4: Indsæt kun det antal rækker der skal bruges. Man kan senere indsætte en tom række hvis det bliver nødvendigt
B6: Bestemmelse af vandstrømning gennem projektområdet (kapitel 3)
C7: Projektnavn | G7: Gammelgaard Sø
C8: Data om projektområdet
C10: Projektområdets areal | G10: 43.79 | H10: ha
C11: Direkte oplandsareal til projektområde | G11: 112.6 | H11: ha | I11: Bestemmes via GIS procedure jf. afsnit 3.4 - figur 3.0
C12: Vandløbsoplandets areal | H12: ha | I12: Se figur 3.0
C13: Årlig nedbør | G13: 681 | H13: mm år-1 | I13: Gennemsnitlig årlig nedbør for 10-årig periode baseret på data fra DMI
C14: Korrektion af nedbør for læforhold | G14: Moderat læ | I14: Kendes forholdene ikke, vælges moderat læ
C15: Korrigeret årlig nedbør | G15: =IF(G14="","",IF(G14="Frit eksponeret",G13*(100+F140)/100,IF(G14="Moderat læ",G13*(100+F141)/100,IF(G14="Ideelt læ",G13*(100+F142)/100)))) -> 824.01 | H15: mm år-1 | I15: Bestemt jf. bilag 2
C16: Potentiel fordampning | G16: 570 | H16: mm år-1 | I16: Gennemsnitlig årlig potentiel fordampning for 10-årig periode baseret på data fra DMI
C17: Nettonedbør | G17: =IF(G16="","",Korrigeret_Nedbor-G16) -> 254.01 | H17: mm år-1 | I17: Bestemt jf. afsnit 3.5
C19: Base flow index (BFI) og overfladenær strømning - Til brug ved oversvømmelse | L19: Base flow index (BFI) og overfladenær strømning fra dirékte opland
C20: BFI regnes på baggrund af karakteristika for vandløbsoplandet (jf. afsnit 3.3) | L20: BFI regnes på baggrund af karakteristika for det direkte opland (jf. afsnit 3.3)
C22: Andel af sandjord (js) | H22: % | I22: Bestemmes fra jordbundskort | L22: Andel sandjord (js) | M22: 21.3 | N22: %
C23: Befæstet areal (j9) | H23: % | I23: Bestemmes fra AIS arealanvendelseskort | L23: Befæstet areal (j9) | M23: 1.8 | N23: %
C24: Georegion | I24: figur 3.3 (mere detaljeret i vejledningen) | L24: Georegion | M24: 6 | N24: figur 3.3
C25: Beregnet BFI | G25: =IF(G24="","",IF(IF(georegion=1,1.3152-0.862-0.0001957*nedbor-0.005439*G22-0.007967*j_9+0.01091*G22,IF(georegion=2,1.3152-0.862-0.0001957*nedbor-0.005439*G22-0.007967*j_9+0.01091*G22,IF(georegion=3,1.3152-0.862-0.0001957*nedbor-0.005439*G22-0.007967*j_9+0.01091*G22,IF(georegion=4,1.3152-0.8509-0.0001957*nedbor-0.005439*G22-0.007967*j_9+0.01079*G22,IF(georegion=5,1.3152-0.8509-0.0001957*nedbor-0.005439*G22-0.007967*j_9+0.01079*G22,IF(georegion=6,1.3152-0.6359-0.0001957*nedbor-0.005439*G22-0.007967*j_9+0.007747*G22+0.01963*j_9,IF(georegion=7,1.3152-0.6581-0.0001957*nedbor-0.005439*G22-0.007967*j_9+0.00715*G22,IF(georegion=8,1.3152-0.6581-0.0001957*nedbor-0.005439*G22-0.007967*j_9+0.00715*G22,IF(georegion=9,1.3152-0.6581-0.0001957*nedbor-0.005439*G22-0.007967*j_9+0.00715*G22,999999)))))))))<0,0.05,IF(IF(georegion=1,1.3152-0.862-0.0001957*nedbor-0.005439*G22-0.007967*j_9+0.01091*G22,IF(georegion=2,1.3152-0.862-0.0001957*nedbor-0.005439*G22-0.007967*j_9+0.01091*G22,IF(georegion=3,1.3152-0.862-0.0001957*nedbor-0.005439*G22-0.007967*j_9+0.01091*G22,IF(georegion=4,1.3152-0.8509-0.0001957*nedbor-0.005439*G22-0.007967*j_9+0.01079*G22,IF(georegion=5,1.3152-0.8509-0.0001957*nedbor-0.005439*G22-0.007967*j_9+0.01079*G22,IF(georegion=6,1.3152-0.6359-0.0001957*nedbor-0.005439*G22-0.007967*j_9+0.007747*G22+0.01963*j_9,IF(georegion=7,1.3152-0.6581-0.0001957*nedbor-0.005439*G22-0.007967*j_9+0.00715*G22,IF(georegion=8,1.3152-0.6581-0.0001957*nedbor-0.005439*G22-0.007967*j_9+0.00715,IF(georegion=9,1.3152-0.6581-0.0001957*nedbor-0.005439*G22-0.007967*j_9+0.00715,999999)))))))))>1,0.95,IF(georegion=1,1.3152-0.862-0.0001957*nedbor-0.005439*G22-0.007967*j_9+0.01091*G22,IF(georegion=2,1.3152-0.862-0.0001957*nedbor-0.005439*G22-0.007967*j_9+0.01091*G22,IF(georegion=3,1.3152-0.862-0.0001957*nedbor-0.005439*G22-0.007967*j_9+0.01091*G22,IF(georegion=4,1.3152-0.8509-0.0001957*nedbor-0.005439*G22-0.007967*j_9+0.01079*G22,IF(georegion=5,1.3152-0.8509-0.0001957*nedbor-0.005439*G22-0.007967*j_9+0.01079*G22,IF(georegion=6,1.3152-0.6359-0.0001957*nedbor-0.005439*G22-0.007967*j_9+0.007747*G22+0.01963*j_9,IF(georegion=7,1.3152-0.6581-0.0001957*nedbor-0.005439*G22-0.007967*j_9+0.00715*G22,IF(georegion=8,1.3152-0.6581-0.0001957*nedbor-0.005439*G22-0.007967*j_9+0.00715*G22,IF(georegion=9,1.3152-0.6581-0.0001957*nedbor-0.005439*G22-0.007967*j_9+0.00715*G22,999999)))))))))))) ->  | I25: Bestemt jf. afsnit 3.3 | L25: Beregnet BFI | M25: =IF(M24="","",IF(IF(M24=1,1.3152-0.862-0.0001957*netto_nedboer-0.005439*M22-0.007967*M23+0.01091*M22,IF(M24=2,1.3152-0.862-0.0001957*netto_nedboer-0.005439*M22-0.007967*M23+0.01091*M22,IF(M24=3,1.3152-0.862-0.0001957*netto_nedboer-0.005439*M22-0.007967*M23+0.01091*M22,IF(M24=4,1.3152-0.8509-0.0001957*netto_nedboer-0.005439*M22-0.007967*M23+0.01079*M22,IF(M24=5,1.3152-0.8509-0.0001957*netto_nedboer-0.005439*M22-0.007967*M23+0.01079*M22,IF(M24=6,1.3152-0.6359-0.0001957*netto_nedboer-0.005439*M22-0.007967*M23+0.007747*M22+0.01963*M23,IF(M24=7,1.3152-0.6581-0.0001957*netto_nedboer-0.005439*M22-0.007967*M23+0.00715*M22,IF(M24=8,1.3152-0.6581-0.0001957*netto_nedboer-0.005439*M22-0.007967*M23+0.00715*M22,IF(M24=9,1.3152-0.6581-0.0001957*netto_nedboer-0.005439*M22-0.007967*M23+0.00715*M22,999999)))))))))<0,0.05,IF(IF(M24=1,1.3152-0.862-0.0001957*netto_nedboer-0.005439*M22-0.007967*M23+0.01091*M22,IF(M24=2,1.3152-0.862-0.0001957*netto_nedboer-0.005439*M22-0.007967*M23+0.01091*M22,IF(M24=3,1.3152-0.862-0.0001957*netto_nedboer-0.005439*M22-0.007967*M23+0.01091*M22,IF(M24=4,1.3152-0.8509-0.0001957*netto_nedboer-0.005439*M22-0.007967*M23+0.01079*M22,IF(M24=5,1.3152-0.8509-0.0001957*netto_nedboer-0.005439*M22-0.007967*M23+0.01079*M22,IF(M24=6,1.3152-0.6359-0.0001957*netto_nedboer-0.005439*M22-0.007967*M23+0.007747*M22+0.01963*M23,IF(M24=7,1.3152-0.6581-0.0001957*netto_nedboer-0.005439*M22-0.007967*M23+0.00715*M22,IF(M24=8,1.3152-0.6581-0.0001957*netto_nedboer-0.005439*M22-0.007967*M23+0.00715*M22,IF(M24=9,1.3152-0.6581-0.0001957*netto_nedboer-0.005439*M22-0.007967*M23+0.00715*M22,999999)))))))))>1,0.95,IF(M24=1,1.3152-0.862-0.0001957*netto_nedboer-0.005439*M22-0.007967*M23+0.01091*M22,IF(M24=2,1.3152-0.862-0.0001957*netto_nedboer-0.005439*M22-0.007967*M23+0.01091*M22,IF(M24=3,1.3152-0.862-0.0001957*netto_nedboer-0.005439*M22-0.007967*M23+0.01091*M22,IF(M24=4,1.3152-0.8509-0.0001957*netto_nedboer-0.005439*M22-0.007967*M23+0.01079*M22,IF(M24=5,1.3152-0.8509-0.0001957*netto_nedboer-0.005439*M22-0.007967*M23+0.01079*M22,IF(M24=6,1.3152-0.6359-0.0001957*netto_nedboer-0.005439*M22-0.007967*M23+0.007747*M22+0.01963*M23,IF(M24=7,1.3152-0.6581-0.0001957*netto_nedboer-0.005439*M22-0.007967*M23+0.00715*M22,IF(M24=8,1.3152-0.6581-0.0001957*netto_nedboer-0.005439*M22-0.007967*M23+0.00715*M22,IF(M24=9,1.3152-0.6581-0.0001957*netto_nedboer-0.005439*M22-0.007967*M23+0.00715*M22,999999)))))))))))) -> 0.699744043 | N25: Bestemt jf. afsnit 3.3
C26: Årsafstrømning eller Nettonedbør i mm/år | I26: Til brug i ligning PP i BOKS 1 kap. 5 | S26: Fosforbalance for projektområdet
C27: Qflom (1 - BFI) x årsafstrømning | G27: =IF(G25="","",(1-BFI)*(G26)) ->  | I27: Indsættes i ligning PP som vist i boks 1 | L27: QOF overfladenære | M27: =IF(M25="","",(1-M25)*(netto_nedboer/1000)*(oplands_areal*10000)) -> 85877.78561 | N27: m3 år-1
L28: strømning
C29: Bestemmelse af vandgennemstrømning (kapitel 3) | T29: Fosforfrigivelse fra projektområder
C30: Vandgennemstrømningen bestemmes for hvert prøvefelt. Beregningerne følger beskrivelsen i kapitel 3 | P30: Simplificeret figur 3.3 | T30: Frigivelsen beregnes ud fra proceduren beskrevet i kapitel 6 i vejledning.
E31: Fremtidige forhold (gælder også grundvandsdybde) | L31: Nuværende forhold | M31: Nuværende forhold | N31: Nuværende forhold | P31: (georegion 9, Bornholm, ikke vist)
G32: Anvendes kun ved delvist vådt | L32: Tekstur og permeabilitet bestemmes vha. tabel 2.1 | AE32: Model 1 | AF32: Model 1 | AI32: Model 2 | AJ32: Model 2
C33: ID for prøvefelt | D33: Areal af prøvefelt (ha) | E33: Type af område | G33: Prøvefeltes placering over vandløbets sommer-middelvandstand (jf. afsnit 3.2) | J33: QOF,areal (afsnit 3.2) (mm år-1) | K33: Grundsvandsdybde (m) | L33: Tekstur | N33: Permeabilitet | O33: Drænings-intensitet (jf. afsnit 3.6) | P33: Drænings-faktor | Q33: Faktor | R33: Gennemstrømning (afsnit 3.2) (Qfelt;mm år-1) | T33: ID for prøvefelt | U33: Vægt af ovntørret prøve (kg) | X33: Jordkernes længde (m) | Y33: Jordkernes radius (m) | AA33: Volumenvægt (ligning 6.3) (kg m-3) | AB33: PBD (0-30 cm) (mg P kg tør jord-1) | AC33: FeBD (0-30 cm) (mg Fe kg tør jord-1) | AD33: FeBD:PBD (ligning 6.2) molforhold | AE33: Frigivelses rate (ligning 6.1) (kg P ha-1 mm-1) | AF33: Fosfor frigivelse (kg P år-1) | AG33: PBD pulje (kg P ha-1) | AH33: PBD total (kg P) | AI33: Frigivelses rate ny ligning kg P ha-1 mm-1 | AJ33: Fosforfrigivelse med ny formel Kg P år-1 | AK33: Antal år med tab grid M1 | AL33: Antal år med tab grid M2
C34: 1 | D34: 1.26 | E34: Tørt | G34: <50 | J34: =IF(E34="","",IF(E34="Permanent vådt",Qovf/(areal*10000)*1000,IF(AND(E34="Delvist vådt",G34="<50"),Qovf/(areal*10000)*1000,IF(AND(E34="Delvist vådt",G34=">50"),(Qovf/(areal*10000))*1000*4/12,IF(E34="Tørt",0,""))))) -> 0 | K34: >1 m | L34: Moderat omsat tørv | N34: 0.5 | O34: Intensiv (>25%) | P34: =IF(O34="","",IF(O34="Intensiv (>25%)",1,IF(O34="Moderat (<25%)",0.5,0))) -> 1 | Q34: =IF(O34="","",IF(N34+P34>1,1,N34+P34)) -> 1 | R34: =IF(P34="","",IF(J34=0,0,IF((J34*Q34)>netto_nedboer,J34*Q34,netto_nedboer))) -> 0 | T34: =IF(C34="","",C34) -> 1 | U34: 0.6653 | X34: 0.285 | Y34: 0.0248 | AA34: =IF(Y34="","",U34/((PI()*Y34^2*X34))) -> 1208.146024 | AB34: 230 | AC34: 1960 | AD34: =IF(AC34="","",((AC34/1000)/Fe)/((AB34/1000)/P)) -> 4.726421392 | AE34: =IF(AD34="","",(0.1313*(AD34^-0.955))) -> 0.02979107992 | AF34: =IF(AE34="","",AE34*R34*D34) -> 0 | AG34: =IF(AB34="","",AA34*10000*0.3*AB34/1000^2) -> 833.6207568 | AH34: =IF(E34="Tørt",0, IF(AG34="","",AG34*D34)) -> 0 | AI34: =IF(AD34="","",(0.0562*(AD34^-0.967))) -> 0.01251593926 | AJ34: =IF(AI34="","",AI34*R34*D34) -> 0 | AK34: =AG34/AF34 ->  | AL34: =AG34/AJ34 -> 
C35: 2 | D35: 1.61 | E35: Permanent vådt | G35: <50 | J35: 196.1127783 | K35: <1 m | L35: Gytje, moderat/stærkt omsat tørv | N35: 0 | O35: Intensiv (>25%) | P35: 1 | Q35: 1 | R35: 254.01 | T35: 2 | U35: 0.1664 | X35: 0.285 | Y35: 0.0248 | AA35: 302.1727017 | AB35: 280 | AC35: 6540 | AD35: 12.95459741 | AE35: 0.01137365058 | AF35: 4.651323782 | AG35: 253.8250694 | AH35: 408.6583618 | AI35: 0.004720873726 | AJ35: 1.930630107 | AK35: 54.57050107 | AL35: 131.4726568
C36: 3 | D36: 1.54 | E36: Permanent vådt | G36: <50 | J36: 196.1127783 | K36: <1 m | L36: Moderat omsat tørv | N36: 0.5 | O36: Intensiv (>25%) | P36: 1 | Q36: 1 | R36: 254.01 | T36: 3 | U36: 0.1267 | X36: 0.285 | Y36: 0.0248 | AA36: 230.0798155 | AB36: 210 | AC36: 7820 | AD36: 20.65340504 | AE36: 0.007285304167 | AF36: 2.849831772 | AG36: 144.9502838 | AH36: 223.223437 | AI36: 0.003007041198 | AJ36: 1.176280543 | AK36: 50.862751 | AL36: 123.2276472
C37: 4 | D37: 12.05 | E37: Permanent vådt | G37: <50 | J37: 196.1127783 | K37: <1 m | L37: Let omsat tørv | N37: 1 | O37: Intensiv (>25%) | P37: 1 | Q37: 1 | R37: 254.01 | T37: 4 | U37: 0.1322 | X37: 0.285 | Y37: 0.0248 | AA37: 240.067495 | AB37: 140 | AC37: 6310 | AD37: 24.99801518 | AE37: 0.006071065904 | AF37: 18.58244297 | AG37: 100.8283479 | AH37: 1214.981592 | AI37: 0.002500124698 | AJ37: 7.65243293 | AK37: 5.426000663 | AL37: 13.17598584
C38: 5 | D38: 1.26 | E38: Tørt | G38: <50 | J38: 0 | K38: >1 m | L38: Moderat omsat tørv | N38: 0.5 | O38: Intensiv (>25%) | P38: 1 | Q38: 1 | R38: 0 | T38: 5 | U38: 0.7678 | X38: 0.285 | Y38: 0.0248 | AA38: 1394.28005 | AB38: 190 | AC38: 2180 | AD38: 6.363661885 | AE38: 0.02242458677 | AF38: 0 | AG38: 794.7396287 | AH38: 0 | AI38: 0.009387534653 | AJ38: 0
C39: 6 | D39: 1.36 | E39: Permanent vådt | G39: <50 | J39: 196.1127783 | K39: <1 m | L39: Muld/sand | N39: 1 | O39: Intensiv (>25%) | P39: 1 | Q39: 1 | R39: 254.01 | T39: 6 | U39: 0.2895 | X39: 0.285 | Y39: 0.0248 | AA39: 525.7151271 | AB39: 300 | AC39: 5950 | AD39: 11.00018312 | AE39: 0.01329620821 | AF39: 4.593222993 | AG39: 473.1436144 | AH39: 643.4753155 | AI39: 0.005529713082 | AJ39: 1.910259291 | AK39: 103.0090669 | AL39: 247.6855454
C40: 7 | D40: 1.41 | E40: Permanent vådt | G40: <50 | J40: 196.1127783 | K40: <1 m | L40: Let omsat tørv | N40: 1 | O40: Intensiv (>25%) | P40: 1 | Q40: 1 | R40: 254.01 | T40: 7 | U40: 0.2617 | X40: 0.285 | Y40: 0.0248 | AA40: 475.2319473 | AB40: 240 | AC40: 7620 | AD40: 17.60953684 | AE40: 0.008483507528 | AF40: 3.038403003 | AG40: 342.1670021 | AH40: 482.4554729 | AI40: 0.003508310828 | AJ40: 1.256515907 | AK40: 112.6140942 | AL40: 272.314103
C41: 8 | D41: 1.35 | E41: Delvist vådt | G41: <50 | J41: 196.1127783 | K41: <1 m | L41: Moderat omsat tørv | N41: 0.5 | O41: Intensiv (>25%) | P41: 1 | Q41: 1 | R41: 254.01 | T41: 8 | U41: 0.4586 | X41: 0.285 | Y41: 0.0248 | AA41: 832.7908714 | AB41: 240 | AC41: 4530 | AD41: 10.46866167 | AE41: 0.01394018907 | AF41: 4.780279026 | AG41: 599.6094274 | AH41: 809.472727 | AI41: 0.005800982559 | AJ41: 1.989235233 | AK41: 125.4339808 | AL41: 301.42711
C42: 9 | D42: 1.2 | E42: Permanent vådt | G42: <50 | J42: 196.1127783 | K42: <1 m | L42: Moderat omsat tørv | N42: 0.5 | O42: Intensiv (>25%) | P42: 1 | Q42: 1 | R42: 254.01 | T42: 9 | U42: 0.215 | X42: 0.285 | Y42: 0.0248 | AA42: 390.4274692 | AB42: 380 | AC42: 6540 | AD42: 9.545492827 | AE42: 0.01522499983 | AF42: 4.640762648 | AG42: 445.0873148 | AH42: 534.1047778 | AI42: 0.006342658162 | AJ42: 1.93331832 | AK42: 95.90822642 | AL42: 230.2193645
C43: 10 | D43: 1.21 | E43: Permanent vådt | G43: <50 | J43: 196.1127783 | K43: <1 m | L43: Moderat omsat tørv | N43: 0.5 | O43: Intensiv (>25%) | P43: 1 | Q43: 1 | R43: 254.01 | T43: 10 | U43: 0.211 | X43: 0.285 | Y43: 0.0248 | AA43: 383.1637023 | AB43: 420 | AC43: 6720 | AD43: 8.874097307 | AE43: 0.01632323105 | AF43: 5.016979341 | AG43: 482.7862649 | AH43: 584.1713805 | AI43: 0.006806129798 | AJ43: 2.091878286 | AK43: 96.23046699 | AL43: 230.7908008
C44: 11 | D44: 1.45 | E44: Delvist vådt | G44: <50 | J44: 196.1127783 | K44: <1 m | L44: Moderat omsat tørv | N44: 0.5 | O44: Intensiv (>25%) | P44: 1 | Q44: 1 | R44: 254.01 | T44: 11 | U44: 0.4675 | X44: 0.285 | Y44: 0.0248 | AA44: 848.9527527 | AB44: 470 | AC44: 4980 | AD44: 5.876729334 | AE44: 0.02419580876 | AF44: 8.911667207 | AG44: 1197.023381 | AH44: 1735.683903 | AI44: 0.01013869608 | AJ44: 3.734228776 | AK44: 134.3209249 | AL44: 320.5543777
C45: 12 | D45: 1.195 | E45: Delvist vådt | G45: <50 | J45: 196.1127783 | K45: <1 m | L45: Let omsat tørv | N45: 1 | O45: Intensiv (>25%) | P45: 1 | Q45: 1 | R45: 254.01 | T45: 12 | U45: 0.6893 | X45: 0.285 | Y45: 0.0248 | AA45: 1251.728626 | AB45: 210 | AC45: 6700 | AD45: 17.69537261 | AE45: 0.008444203699 | AF45: 2.563170057 | AG45: 788.5890341 | AH45: 942.3638957 | AI45: 0.003491853174 | AJ45: 1.059923922 | AK45: 307.661613 | AL45: 744.0053177
C46: 13 | D46: 1.21 | E46: Permanent vådt | G46: <50 | J46: 196.1127783 | K46: <1 m | L46: Moderat omsat tørv | N46: 0.5 | O46: Intensiv (>25%) | P46: 1 | Q46: 1 | R46: 254.01 | T46: 13 | U46: 0.1077 | X46: 0.285 | Y46: 0.0248 | AA46: 195.5769229 | AB46: 120 | AC46: 8790 | AD46: 40.62672674 | AE46: 0.003818118698 | AF46: 1.1735068 | AG46: 70.40769225 | AH46: 85.19330762 | AI46: 0.001563202616 | AJ46: 0.4804536067 | AK46: 59.9976858 | AL46: 146.5442059
C47: 14 | D47: 1.34 | E47: Permanent vådt | G47: <50 | J47: 196.1127783 | K47: <1 m | L47: Moderat omsat tørv | N47: 0.5 | O47: Intensiv (>25%) | P47: 1 | Q47: 1 | R47: 254.01 | T47: 14 | U47: 0.0662 | X47: 0.285 | Y47: 0.0248 | AA47: 120.2153417 | AB47: 140 | AC47: 8390 | AD47: 33.2382484 | AE47: 0.004624878339 | AF47: 1.574185565 | AG47: 50.4904435 | AH47: 67.65719429 | AI47: 0.001898070086 | AJ47: 0.6460525687 | AK47: 32.07400997 | AL47: 78.15222157
C48: 15 | D48: 1.41 | E48: Delvist vådt | G48: <50 | J48: =IF(E48="","",IF(E48="Permanent vådt",Qovf/(areal*10000)*1000,IF(AND(E48="Delvist vådt",G48="<50"),Qovf/(areal*10000)*1000,IF(AND(E48="Delvist vådt",G48=">50"),(Qovf/(areal*10000))*1000*4/12,IF(E48="Tørt",0,""))))) -> 196.1127783 | K48: <1 m | L48: Moderat omsat tørv | N48: 0.5 | O48: Intensiv (>25%) | P48: 1 | Q48: =IF(O48="","",IF(N48+P48>1,1,N48+P48)) -> 1 | R48: =IF(P48="","",IF(J48=0,0,IF((J48*Q48)>netto_nedboer,J48*Q48,netto_nedboer))) -> 254.01 | T48: =IF(C48="","",C48) -> 15 | U48: 0.1039 | X48: 0.285 | Y48: 0.0248 | AA48: =IF(Y48="","",U48/((PI()*Y48^2*X48))) -> 188.6763444 | AB48: 70 | AC48: 7430 | AD48: =IF(AC48="","",((AC48/1000)/Fe)/((AB48/1000)/P)) -> 58.87012767 | AE48: 0.002679261 | AF48: =IF(AE48="","",AE48*R48*D48) -> 0.9595883121 | AG48: =IF(AB48="","",AA48*10000*0.3*AB48/1000^2) -> 39.62203232 | AH48: =IF(E48="Tørt",0, IF(AG48="","",AG48*D48)) -> 55.86706558 | AI48: =IF(AD48="","",(0.0562*(AD48^-0.967))) -> 0.00109206345 | AJ48: =IF(AI48="","",AI48*R48*D48) -> 0.3911270022 | AK48: =AG48/AF48 -> 41.29065749 | AL48: =AG48/AJ48 -> 101.3022167
C49: 16 | D49: 1.47 | E49: Delvist vådt | G49: <50 | J49: =IF(E49="","",IF(E49="Permanent vådt",Qovf/(areal*10000)*1000,IF(AND(E49="Delvist vådt",G49="<50"),Qovf/(areal*10000)*1000,IF(AND(E49="Delvist vådt",G49=">50"),(Qovf/(areal*10000))*1000*4/12,IF(E49="Tørt",0,""))))) -> 196.1127783 | K49: <1 m | L49: Moderat omsat tørv | N49: 0.5 | O49: Intensiv (>25%) | P49: 1 | Q49: =IF(O49="","",IF(N49+P49>1,1,N49+P49)) -> 1 | R49: =IF(P49="","",IF(J49=0,0,IF((J49*Q49)>netto_nedboer,J49*Q49,netto_nedboer))) -> 254.01 | T49: =IF(C49="","",C49) -> 16 | U49: 0.0925 | X49: 0.285 | Y49: 0.0248 | AA49: =IF(Y49="","",U49/((PI()*Y49^2*X49))) -> 167.9746088 | AB49: 220 | AC49: 6060 | AD49: =IF(AC49="","",((AC49/1000)/Fe)/((AB49/1000)/P)) -> 15.27756525 | AE49: 0.009716123255 | AF49: =IF(AE49="","",AE49*R49*D49) -> 3.627948928 | AG49: =IF(AB49="","",AA49*10000*0.3*AB49/1000^2) -> 110.8632418 | AH49: =IF(E49="Tørt",0, IF(AG49="","",AG49*D49)) -> 162.9689655 | AI49: =IF(AD49="","",(0.0562*(AD49^-0.967))) -> 0.004024907975 | AJ49: =IF(AI49="","",AI49*R49*D49) -> 1.502879306 | AK49: =AG49/AF49 -> 30.55810433 | AL49: =AG49/AJ49 -> 73.76722894
C50: 17 | D50: 1.48 | E50: Delvist vådt | G50: <50 | J50: =IF(E50="","",IF(E50="Permanent vådt",Qovf/(areal*10000)*1000,IF(AND(E50="Delvist vådt",G50="<50"),Qovf/(areal*10000)*1000,IF(AND(E50="Delvist vådt",G50=">50"),(Qovf/(areal*10000))*1000*4/12,IF(E50="Tørt",0,""))))) -> 196.1127783 | K50: <1 m | L50: Moderat omsat tørv | N50: 0.5 | O50: Intensiv (>25%) | P50: 1 | Q50: =IF(O50="","",IF(N50+P50>1,1,N50+P50)) -> 1 | R50: =IF(P50="","",IF(J50=0,0,IF((J50*Q50)>netto_nedboer,J50*Q50,netto_nedboer))) -> 254.01 | T50: =IF(C50="","",C50) -> 17 | U50: 0.1004 | X50: 0.285 | Y50: 0.0248 | AA50: =IF(Y50="","",U50/((PI()*Y50^2*X50))) -> 182.3205484 | AB50: 390 | AC50: 9040 | AD50: =IF(AC50="","",((AC50/1000)/Fe)/((AB50/1000)/P)) -> 12.85606405 | AE50: 0.01145688516 | AF50: =IF(AE50="","",AE50*R50*D50) -> 4.307041832 | AG50: =IF(AB50="","",AA50*10000*0.3*AB50/1000^2) -> 213.3150416 | AH50: =IF(E50="Tørt",0, IF(AG50="","",AG50*D50)) -> 315.7062616 | AI50: =IF(AD50="","",(0.0562*(AD50^-0.967))) -> 0.004755857716 | AJ50: =IF(AI50="","",AI50*R50*D50) -> 1.787892419 | AK50: =AG50/AF50 -> 49.52704198 | AL50: =AG50/AJ50 -> 119.3108933
C51: 18 | D51: 1.28 | E51: Permanent vådt | G51: <50 | J51: =IF(E51="","",IF(E51="Permanent vådt",Qovf/(areal*10000)*1000,IF(AND(E51="Delvist vådt",G51="<50"),Qovf/(areal*10000)*1000,IF(AND(E51="Delvist vådt",G51=">50"),(Qovf/(areal*10000))*1000*4/12,IF(E51="Tørt",0,""))))) -> 196.1127783 | K51: <1 m | L51: Moderat omsat tørv | N51: 0.5 | O51: Intensiv (>25%) | P51: 1 | Q51: =IF(O51="","",IF(N51+P51>1,1,N51+P51)) -> 1 | R51: =IF(P51="","",IF(J51=0,0,IF((J51*Q51)>netto_nedboer,J51*Q51,netto_nedboer))) -> 254.01 | T51: =IF(C51="","",C51) -> 18 | U51: 0.1237 | X51: 0.285 | Y51: 0.0248 | AA51: =IF(Y51="","",U51/((PI()*Y51^2*X51))) -> 224.6319904 | AB51: 130 | AC51: 5990 | AD51: =IF(AC51="","",((AC51/1000)/Fe)/((AB51/1000)/P)) -> 25.55569369 | AE51: 0.005944481741 | AF51: =IF(AE51="","",AE51*R51*D51) -> 1.932745993 | AG51: =IF(AB51="","",AA51*10000*0.3*AB51/1000^2) -> 87.60647625 | AH51: =IF(E51="Tørt",0, IF(AG51="","",AG51*D51)) -> 112.1362896 | AI51: =IF(AD51="","",(0.0562*(AD51^-0.967))) -> 0.002447348038 | AJ51: =IF(AI51="","",AI51*R51*D51) -> 0.79571312 | AK51: =AG51/AF51 -> 45.32746495 | AL51: =AG51/AJ51 -> 110.0980668
C52: 19 | D52: 1.19 | E52: Permanent vådt | G52: <50 | J52: =IF(E52="","",IF(E52="Permanent vådt",Qovf/(areal*10000)*1000,IF(AND(E52="Delvist vådt",G52="<50"),Qovf/(areal*10000)*1000,IF(AND(E52="Delvist vådt",G52=">50"),(Qovf/(areal*10000))*1000*4/12,IF(E52="Tørt",0,""))))) -> 196.1127783 | K52: <1 m | L52: Moderat omsat tørv | N52: 0.5 | O52: Intensiv (>25%) | P52: 1 | Q52: =IF(O52="","",IF(N52+P52>1,1,N52+P52)) -> 1 | R52: =IF(P52="","",IF(J52=0,0,IF((J52*Q52)>netto_nedboer,J52*Q52,netto_nedboer))) -> 254.01 | T52: =IF(C52="","",C52) -> 19 | U52: 0.1411 | X52: 0.285 | Y52: 0.0248 | AA52: =IF(Y52="","",U52/((PI()*Y52^2*X52))) -> 256.2293763 | AB52: 110 | AC52: 6540 | AD52: =IF(AC52="","",((AC52/1000)/Fe)/((AB52/1000)/P)) -> 32.97533886 | AE52: 0.004660086478 | AF52: =IF(AE52="","",AE52*R52*D52) -> 1.408613194 | AG52: =IF(AB52="","",AA52*10000*0.3*AB52/1000^2) -> 84.55569417 | AH52: =IF(E52="Tørt",0, IF(AG52="","",AG52*D52)) -> 100.6212761 | AI52: =IF(AD52="","",(0.0562*(AD52^-0.967))) -> 0.001912701922 | AJ52: =IF(AI52="","",AI52*R52*D52) -> 0.5781560441 | AK52: =AG52/AF52 -> 60.02761762 | AL52: =AG52/AJ52 -> 146.2506447
C53: 20 | D53: 1.29 | E53: Permanent vådt | G53: <50 | J53: =IF(E53="","",IF(E53="Permanent vådt",Qovf/(areal*10000)*1000,IF(AND(E53="Delvist vådt",G53="<50"),Qovf/(areal*10000)*1000,IF(AND(E53="Delvist vådt",G53=">50"),(Qovf/(areal*10000))*1000*4/12,IF(E53="Tørt",0,""))))) -> 196.1127783 | K53: <1 m | L53: Moderat omsat tørv | N53: 0.5 | O53: Intensiv (>25%) | P53: 1 | Q53: =IF(O53="","",IF(N53+P53>1,1,N53+P53)) -> 1 | R53: =IF(P53="","",IF(J53=0,0,IF((J53*Q53)>netto_nedboer,J53*Q53,netto_nedboer))) -> 254.01 | T53: =IF(C53="","",C53) -> 20 | U53: 0.151 | X53: 0.285 | Y53: 0.0248 | AA53: =IF(Y53="","",U53/((PI()*Y53^2*X53))) -> 274.2071993 | AB53: 160 | AC53: 7170 | AD53: =IF(AC53="","",((AC53/1000)/Fe)/((AB53/1000)/P)) -> 24.85440535 | AE53: 0.00610456189 | AF53: =IF(AE53="","",AE53*R53*D53) -> 2.000299498 | AG53: =IF(AB53="","",AA53*10000*0.3*AB53/1000^2) -> 131.6194556 | AH53: =IF(E53="Tørt",0, IF(AG53="","",AG53*D53)) -> 169.7890978 | AI53: =IF(AD53="","",(0.0562*(AD53^-0.967))) -> 0.002514092486 | AJ53: =IF(AI53="","",AI53*R53*D53) -> 0.8237999758 | AK53: =AG53/AF53 -> 65.79987437 | AL53: =AG53/AJ53 -> 159.7711332
C54: 21 | D54: 1.2 | E54: Permanent vådt | G54: <50 | J54: =IF(E54="","",IF(E54="Permanent vådt",Qovf/(areal*10000)*1000,IF(AND(E54="Delvist vådt",G54="<50"),Qovf/(areal*10000)*1000,IF(AND(E54="Delvist vådt",G54=">50"),(Qovf/(areal*10000))*1000*4/12,IF(E54="Tørt",0,""))))) -> 196.1127783 | K54: <1 m | L54: Moderat omsat tørv | N54: 0.5 | O54: Intensiv (>25%) | P54: 1 | Q54: =IF(O54="","",IF(N54+P54>1,1,N54+P54)) -> 1 | R54: =IF(P54="","",IF(J54=0,0,IF((J54*Q54)>netto_nedboer,J54*Q54,netto_nedboer))) -> 254.01 | T54: =IF(C54="","",C54) -> 21 | U54: 0.1682 | X54: 0.285 | Y54: 0.0248 | AA54: =IF(Y54="","",U54/((PI()*Y54^2*X54))) -> 305.4413968 | AB54: 100 | AC54: 10200 | AD54: =IF(AC54="","",((AC54/1000)/Fe)/((AB54/1000)/P)) -> 56.57237033 | AE54: 0.0027830919 | AF54: =IF(AE54="","",AE54*R54*D54) -> 0.8483198082 | AG54: =IF(AB54="","",AA54*10000*0.3*AB54/1000^2) -> 91.63241904 | AH54: =IF(E54="Tørt",0, IF(AG54="","",AG54*D54)) -> 109.9589028 | AI54: =IF(AD54="","",(0.0562*(AD54^-0.967))) -> 0.001134926886 | AJ54: =IF(AI54="","",AI54*R54*D54) -> 0.3459393339 | AK54: =AG54/AF54 -> 108.0163615 | AL54: =AG54/AJ54 -> 264.880024
C55: 22 | D55: 1.07 | E55: Permanent vådt | G55: <50 | J55: =IF(E55="","",IF(E55="Permanent vådt",Qovf/(areal*10000)*1000,IF(AND(E55="Delvist vådt",G55="<50"),Qovf/(areal*10000)*1000,IF(AND(E55="Delvist vådt",G55=">50"),(Qovf/(areal*10000))*1000*4/12,IF(E55="Tørt",0,""))))) -> 196.1127783 | K55: <1 m | L55: Moderat omsat tørv | N55: 0.5 | O55: Intensiv (>25%) | P55: 1 | Q55: =IF(O55="","",IF(N55+P55>1,1,N55+P55)) -> 1 | R55: =IF(P55="","",IF(J55=0,0,IF((J55*Q55)>netto_nedboer,J55*Q55,netto_nedboer))) -> 254.01 | T55: =IF(C55="","",C55) -> 22 | U55: 0.1735 | X55: 0.285 | Y55: 0.0248 | AA55: =IF(Y55="","",U55/((PI()*Y55^2*X55))) -> 315.0658879 | AB55: 110 | AC55: 9390 | AD55: =IF(AC55="","",((AC55/1000)/Fe)/((AB55/1000)/P)) -> 47.34532598 | AE55: 0.003298945076 | AF55: =IF(AE55="","",AE55*R55*D55) -> 0.8966225914 | AG55: =IF(AB55="","",AA55*10000*0.3*AB55/1000^2) -> 103.971743 | AH55: =IF(E55="Tørt",0, IF(AG55="","",AG55*D55)) -> 111.249765 | AI55: =IF(AD55="","",(0.0562*(AD55^-0.967))) -> 0.001348165935 | AJ55: =IF(AI55="","",AI55*R55*D55) -> 0.3664189631 | AK55: =AG55/AF55 -> 115.9593167 | AL55: =AG55/AJ55 -> 283.7509886
C56: 23 | D56: 1.17 | E56: Permanent vådt | G56: <50 | J56: =IF(E56="","",IF(E56="Permanent vådt",Qovf/(areal*10000)*1000,IF(AND(E56="Delvist vådt",G56="<50"),Qovf/(areal*10000)*1000,IF(AND(E56="Delvist vådt",G56=">50"),(Qovf/(areal*10000))*1000*4/12,IF(E56="Tørt",0,""))))) -> 196.1127783 | K56: <1 m | L56: Moderat omsat tørv | N56: 0.5 | O56: Intensiv (>25%) | P56: 1 | Q56: =IF(O56="","",IF(N56+P56>1,1,N56+P56)) -> 1 | R56: =IF(P56="","",IF(J56=0,0,IF((J56*Q56)>netto_nedboer,J56*Q56,netto_nedboer))) -> 254.01 | T56: =IF(C56="","",C56) -> 23 | U56: 0.133 | X56: 0.285 | Y56: 0.0248 | AA56: =IF(Y56="","",U56/((PI()*Y56^2*X56))) -> 241.5202484 | AB56: 210 | AC56: 6430 | AD56: =IF(AC56="","",((AC56/1000)/Fe)/((AB56/1000)/P)) -> 16.9822755 | AE56: 0.008782510115 | AF56: =IF(AE56="","",AE56*R56*D56) -> 2.610089111 | AG56: =IF(AB56="","",AA56*10000*0.3*AB56/1000^2) -> 152.1577565 | AH56: =IF(E56="Tørt",0, IF(AG56="","",AG56*D56)) -> 178.0245751 | AI56: =IF(AD56="","",(0.0562*(AD56^-0.967))) -> 0.003633542945 | AJ56: =IF(AI56="","",AI56*R56*D56) -> 1.079858805 | AK56: =AG56/AF56 -> 58.29600062 | AL56: =AG56/AJ56 -> 140.9052329
C57: 24 | D57: 0.99 | E57: Permanent vådt | G57: <50 | J57: =IF(E57="","",IF(E57="Permanent vådt",Qovf/(areal*10000)*1000,IF(AND(E57="Delvist vådt",G57="<50"),Qovf/(areal*10000)*1000,IF(AND(E57="Delvist vådt",G57=">50"),(Qovf/(areal*10000))*1000*4/12,IF(E57="Tørt",0,""))))) -> 196.1127783 | K57: <1 m | L57: Moderat omsat tørv | N57: 0.5 | O57: Intensiv (>25%) | P57: 1 | Q57: =IF(O57="","",IF(N57+P57>1,1,N57+P57)) -> 1 | R57: =IF(P57="","",IF(J57=0,0,IF((J57*Q57)>netto_nedboer,J57*Q57,netto_nedboer))) -> 254.01 | T57: =IF(C57="","",C57) -> 24 | U57: 0.1365 | X57: 0.285 | Y57: 0.0248 | AA57: =IF(Y57="","",U57/((PI()*Y57^2*X57))) -> 247.8760444 | AB57: 370 | AC57: 10700 | AD57: =IF(AC57="","",((AC57/1000)/Fe)/((AB57/1000)/P)) -> 16.03933128 | AE57: 0.009274955832 | AF57: =IF(AE57="","",AE57*R57*D57) -> 2.332372215 | AG57: =IF(AB57="","",AA57*10000*0.3*AB57/1000^2) -> 275.1424093 | AH57: =IF(E57="Tørt",0, IF(AG57="","",AG57*D57)) -> 272.3909852 | AI57: =IF(AD57="","",(0.0562*(AD57^-0.967))) -> 0.003839911406 | AJ57: =IF(AI57="","",AI57*R57*D57) -> 0.9656221373 | AK57: =AG57/AF57 -> 117.9667668 | AL57: =AG57/AJ57 -> 284.9379676
C58: 25 | D58: 1.79 | E58: Permanent vådt | G58: <50 | J58: =IF(E58="","",IF(E58="Permanent vådt",Qovf/(areal*10000)*1000,IF(AND(E58="Delvist vådt",G58="<50"),Qovf/(areal*10000)*1000,IF(AND(E58="Delvist vådt",G58=">50"),(Qovf/(areal*10000))*1000*4/12,IF(E58="Tørt",0,""))))) -> 196.1127783 | K58: <1 m | L58: Moderat omsat tørv | N58: 0.5 | O58: Intensiv (>25%) | P58: 1 | Q58: =IF(O58="","",IF(N58+P58>1,1,N58+P58)) -> 1 | R58: =IF(P58="","",IF(J58=0,0,IF((J58*Q58)>netto_nedboer,J58*Q58,netto_nedboer))) -> 254.01 | T58: =IF(C58="","",C58) -> 25 | U58: 0.1719 | X58: 0.285 | Y58: 0.0248 | AA58: =IF(Y58="","",U58/((PI()*Y58^2*X58))) -> 312.1603812 | AB58: 220 | AC58: 6910 | AD58: =IF(AC58="","",((AC58/1000)/Fe)/((AB58/1000)/P)) -> 17.42045807 | AE58: 0.008571421188 | AF58: =IF(AE58="","",AE58*R58*D58) -> 3.897235786 | AG58: =IF(AB58="","",AA58*10000*0.3*AB58/1000^2) -> 206.0258516 | AH58: =IF(E58="Tørt",0, IF(AG58="","",AG58*D58)) -> 368.7862743 | AI58: =IF(AD58="","",(0.0562*(AD58^-0.967))) -> 0.00354512629 | AJ58: =IF(AI58="","",AI58*R58*D58) -> 1.611890577 | AK58: =AG58/AF58 -> 52.86461043 | AL58: =AG58/AJ58 -> 127.8162764
D59: =SUM(D$34:D58) -> 43.785 | AF59: (areal*Qfelt*frigivelses rate) | AH59: =Ppulje -> 9688.940824
C60: Type af område | H60: Tabel til bestemmelse af permeabilitet (flere detaljer finde i afsnit 2.2 + 3.7)
T61: Samlet fosforfrigivelse fra projektområdet M1 | Z61: Samlet fosforfrigivelse med ny formel M2
U62: =IF(AF57="","",SUM(AF$34:AF58)) -> 87.19665244 | W62: kg år-1 | AA62: =IF(AJ57="","",SUM(AJ$34:AJ58)) -> 36.11050717
T64: Samlet fosfor (PBD) pulje i projektområdet | AA64: Antal år med fosfortab
U65: =IF(AH57="","",SUM(AH$34:AH58)) -> 9688.940824 | W65: kg | Y65: Oprindelig formel M1 | AA65: =Ppulje/Ptab -> 111.1159724
Y66: Ny Formel M2 | AA66: =Ppulje/Ptab2 -> 268.3136179
T68: Fosfortilbageholdelse ved sedimentation
T69: Tilbageholdelsen beregnes ud fra proceduren beskrevet i kapitel 4 og 5 i vejledning, og er afhænger af typen af vådområde. Fosfor balancen er beregnet jf. kapitel 8.
T71: Type af projekt | X71: A | AB71: Der kan indsættes op til 3 typer. DVS en i hver boks i drop down menuen
T72: A: Overrislingsareal
T73: B: Oversvømmelsesareal
T74: C: Areal ved Sødannelse
AA75: Total Typer | AB75: Projektareal | AC75: Projektareal - type areal | AE75: Kommentar
T76: Areal af type A B C | AA76: =X76+Y76+Z76 -> 0 | AB76: =G10 -> 43.79 | AC76: =AB76-AA76 -> 43.79 | AE76: =IF(AC76<0,"Projektareal mindre end Total typer","Ok") -> Ok
T78: A: Overrisling (kapitel 4)
T79: Drænet oplandsareal til overrisling | X79: 112 | Y79: ha | AA79: Obs! Indsæt 0 hvis der ikke er overrisling
T80: Fosfortilbageholdelse | X80: =IF(X79="","",0.062*X79) -> 6.944 | Y80: kg P år-1 | AA80: beregnes ud fra en vejledende værdi på 0.062 kg ha-1 år-1
T83: B: Oversvømmelse (kapitel 5)
T84: Vandløbstype
T85: 1: Oplandsareal <10 km2, dog min. 2 km2
T86: 2: Oplandsareal 10-100 km2
T87: 3: Oplandsareal >100 km2
T89: Der må maks. regnes sedimentation for et område op til | Z89: =IF($X$84="","",IF($X$84=1,25,IF($X$84=2,75,100))) ->  | AA89: meter fra vandløbet på hver side (oversvømmet areal)
T90: Oversvømmet areal bestemmes efter kapitel 5 i vejledningen - manuel eller modelberegnet
T92: Manuelt beregnet oversvømmet areal
T93: Vandløbsstrækning | Y93: m | Z93: Længde af vandløbsstrækning grænsende op til projektområdet
T94: Bredde for sedimentationsområde | Y94: m | Z94: =IF(X94>Z89,"Større end den maksimale bredde for denne type vandløb","") -> 
T95: Oversvømmet areal | X95: =IF(X94="","",X93*X94/10000) ->  | Y95: ha
T97: Modelberegnet oversvømmet areal
T98: Modelberegnet oversvømmet areal | Y98: ha
T99: Oversvømmelseshyppighed | Y99: antal dage år-1
T101: Dage med oversvømmelse | Y101: dage
T103: Forventet tab af partikelbundet fosfor fra oplandet (beregnes med lingning 2, kapitel 5)
T104: Årsafstrømning | X104: =IF(X84="","",G26) ->  | Y104: mm år-1
T105: Qflom | X105: =IF(X104="","",(1-G25)*X104) ->  | Y105: mm år-1
T106: Andel sandjord i vandløbsopland (S) | X106: =IF(X104="","",G22) ->  | Y106: %
T107: Andel landbrugsjord i vandløbsopland (A) | Y107: %
T108: Hældning på vandløb (SL) | Y108: ‰ eller m/km
T109: Andel af eng/mose i vandløbsopland (EM) | Y109: % | AA109: Kode 4110 + 4120 i AIS arealanvendelses tema
T110: Partikelbundet P (PP) | X110: =IF(X109="","",1.09*EXP(-7.6634+0.9208*LN(X105)+0.0229*X107+0.0092*X106+0.0187*X108-0.0412*X109)) ->  | Y110: kg P ha-1 år-1
S111: 1 | T111: Fosfordeponering_metode1 LIGNING 1 | X111: =IF(X113="","",IF(AND(X95="",X98=""),"angiv areal",IF(X98="",X101*X113*X95,X101*X113*X98))) ->  | Y111: kg P år-1 | AA111: Beregning af deponering med ligning 1, Kap 5.2
S112: 2 | T112: Fosfordeponering_metode2 LIGNING 2 | X112: =IF(X110="","", X110*G12*0.1) ->  | Y112: kg P år-1 | AA112: Beregning af deponering med ligning 2, Kap 5.3 (MAKSIMAL årlig sedimentation af fosfor; i.e. 10 % af årlig PP transport i vandløb)
T113: Fosfordeponeringsrate | X113: =IF(X110="","",IF( X110<0.14,0.5,IF(AND(X110>=0.14,X110<=0.36),1,1.5))) ->  | Y113: kg P oversvømmet ha-1 år-1
T114: Valgt Fosfordeponering | X114: =IF(X111>X112,X112,X111) ->  | Y114: kg P år-1 | AA114: Obs!! Hvis beregning 1 > beregning 2 vælges beregning 2 automatisk ellers anvendes 1
T117: (kapitel 8 i vejledningen).
T118: Fosfortilbageholdelse i søer | X118: =0 -> 0 | Y118: kg P år-1 | AA118: Obs!! Ny viden: I nyretablerede søer er der IKKE P tilbageholdelse
T121: Total fosfortilbageholdelse (A+B+C) | X121: =IF(ISERROR((X80+X114)-U62),IF(X114="",(X80+0)-U62,IF(X80="",(0+X114)-U62,IF(AND(X114="",X80=""),-U62))),(X80+X114)-U62) -> -80.25265244 | Y121: kg P år-1 | AA121: Negative tal=frigivelse/tab af P Positive tal=tilbageholdelse af P
T123: Total fosfortilbageholdelse (A+B+C) Ny formel | X123: =IF(ISERROR((X80+X114)-AA62),IF(X114="",(X80+0)-AA62,IF(X80="",(0+X114)-AA62,IF(AND(X114="",X80=""),-AA62))),(X80+X114)-AA62) -> -29.16650717 | Y123: kg P år-1
C128: Skjules når det endelige ark laves
C129: Type | F129: Grundvandstand | G129: Permeabilitet | H129: Dræningsintensitet | I129: Dræningsfaktor | M129: Molvægt (g/mol) | O129: Type projekt | R129: Vandløbstype
C130: Permanent vådt | F130: 0 | G130: 1 | H130: Intensiv (>25%) | I130: 1 | M130: P | N130: 30.973761 | O130: A | P130: A: Overrisling med drænvand | R130: 1
C131: Delvist vådt | F131: <50 | G131: 0.5 | H131: Moderat (<25%) | M131: Fe | N131: 55.8457 | O131: B | P131: B: Oversvømmelse med vandløbsvand | R131: 2
C132: Tørt | F132: >50 | G132: 0 | H132: Ingen | O132: C | P132: C: Overrisling + oversvømmelse | R132: 3
O133: D | P133: D: Sødannelse
C135: m24 | E135: Korrektion af nedbør | I135: Grundvandsdybde
C136: 1 | F136: Frit eksponeret | I136: Permanent vådt
C137: 2 | F137: Moderat læ | I137: Højtliggende grundvandsspejl
C138: 3 | F138: Ideelt læ | I138: Dybtliggende grundvandsspejs (>1m)
C139: 4 | F139: År
C140: 5 | E140: Frit | F140: 27
C141: 6 | E141: Moderat | F141: 21
C142: 7 | E142: Ideelt | F142: 16
C143: 8
C144: 9

Sheet Rettelser
A1: Rettelser foretaget i regne arket
A3: Juni2018: indsat ny opdateret figur vandløbsoplande
A4: Juni 2018: Indsat 2 Gule Bjælker i række 31 E-I og L-O fortællende hvilke data der skal indtastes
A5: Juni 2018: Der kan nu indsættes en ekstra række i regnearket, se kolonne R nedenunder gennemstrømning
A7: Oktober 2018 | B7: Ligning 6.1 rettet
A9: August 2020 | B9: Indsat ligning for oxisk interface, M2, i kolonne AI
B10: Fosforfrigivelse beregnet efter M2 i kolonne AJ
B11: Antal år med fosforfrigivelse med oprindelig formel M1 beregnes for hvert grid i kolonne AK
B12: Antal år med fosforfrigivelse beregnet med ny formel M2 beregnes for hvert grid i kolonne AL
